bitfinex/quotes_SOLUSD_20240813
["timestamp","ask_amount","ask_price","bid_price","bid_amount"]
[1723589665501,20.25098,147.36,147.26,15.9947]
[1723589665502,20.25098,147.36,147.27,52.34756731]
[1723589665792,20.12549,147.36,147.34,6.787]
[1723589665993,0.12549,147.36,147.33,6.7874]
[1723589666295,20.0,147.37,147.33,6.7874]
[1723589666296,20.0,147.37,147.33,6.7873]
[1723589666795,26.7857,147.37,147.33,6.7873]
[1723589667480,6.787,147.34,147.27,20.0]
[1723589668279,0.12549,147.32,147.27,20.0]
[1723589668478,0.25098,147.32,147.26,15.9947]
[1723589668690,0.25098,147.32,147.27,6.7898]
[1723589668691,7.03888,147.32,147.27,6.7898]
[1723589668887,6.7885,147.31,147.26,22.7852]
[1723589669285,6.7885,147.31,147.26,6.7905]
[1723589669489,7.03898,147.32,147.27,6.79]
[1723589669796,20.0,147.35,147.27,6.79]
[1723589669797,20.0,147.35,147.28,16.0636]
[1723589669970,20.0,147.38,147.28,16.0636]
[1723589670170,26.7852,147.38,147.28,16.0636]
[1723589671380,26.7852,147.38,147.33,6.7873]
[1723589672981,26.7852,147.38,147.28,16.0636]
[1723589672982,0.12549,147.36,147.31,6.788]
[1723589673201,20.25098,147.36,147.31,6.788]
[1723589673706,0.25098,147.36,147.31,6.788]
[1723589673904,0.12549,147.36,147.31,6.788]
[1723589674205,20.25098,147.36,147.3,6.7888]
[1723589674508,0.12549,147.34,147.29,6.7892]
[1723589674677,7.16357,147.34,147.29,6.7892]
[1723589674870,45.12549,147.33,147.29,6.7892]
[1723589675289,45.12549,147.33,147.3,6.7888]
[1723589678115,0.12549,147.33,147.3,6.7888]
[1723589678286,0.12549,147.33,147.29,6.7891]
[1723589678482,0.25098,147.33,147.29,6.7891]
[1723589679196,0.25098,147.32,147.27,6.7898]
[1723589679394,0.12549,147.31,147.28,6.7896]
[1723589679615,0.25098,147.31,147.28,6.7896]
[1723589679804,0.12549,147.31,147.29,6.7891]
[1723589680111,0.12549,147.31,147.3,6.7888]
[1723589680321,20.0,147.33,147.3,6.7888]
[1723589680521,27.03798,147.34,147.3,6.7888]
[1723589680719,45.25098,147.33,147.3,6.7888]
[1723589680924,45.25098,147.33,147.29,6.7892]
[1723589682020,52.03848,147.33,147.28,6.7897]
[1723589682227,20.25098,147.32,147.28,6.7897]
[1723589682521,0.25098,147.31,147.28,6.7897]
[1723589682690,0.12549,147.3,147.24,16.4761]
[1723589682893,0.37647,147.3,147.24,16.4761]
[1723589683112,0.12549,147.3,147.24,16.4761]
[1723589683392,45.12549,147.31,147.28,6.7897]
[1723589684207,0.12549,147.3,147.27,6.7902]
[1723589684402,0.25098,147.3,147.27,6.7902]
[1723589684601,0.12549,147.29,147.26,6.7906]
[1723589684821,0.12549,147.29,147.27,6.7901]
[1723589685531,45.0,147.31,147.27,6.7901]
[1723589685699,0.12549,147.3,147.27,6.7901]
[1723589686528,20.37647,147.32,147.28,6.7895]
[1723589686833,0.12549,147.31,147.28,6.7895]
[1723589686999,0.12549,147.31,147.24,17.8341732]
[1723589687322,0.12549,147.31,147.28,6.7896]
[1723589689325,6.7865,147.35,147.24,48.82402418]
[1723589689626,6.4923,147.37,147.26,30.99]
[1723589689825,13.278,147.37,147.32,6.7879]
[1723589690808,6.7861,147.36,147.32,6.7879]
[1723589691007,0.12549,147.36,147.32,6.7879]
[1723589691224,0.25098,147.36,147.33,6.7874]
[1723589691409,7.03718,147.36,147.31,6.788]
[1723589691914,6.7866,147.35,147.31,6.788]
[1723589692328,0.25098,147.34,147.29,15.0693]
[1723589693523,7.03808,147.34,147.29,15.0693]
[1723589693728,7.03808,147.34,147.29,21.8585]
[1723589694728,0.25098,147.34,147.3,6.7887]
[1723589694914,65.25098,147.34,147.3,6.7887]
[1723589696403,45.25098,147.34,147.3,6.7887]
[1723589698711,52.03808,147.34,147.29,15.0693]
[1723589699925,52.03808,147.34,147.3,6.7887]
[1723589700437,0.12549,147.36,147.29,15.0693]
[1723589700625,65.37647,147.36,147.29,15.0693]
[1723589701129,6.91209,147.35,147.3,6.7887]
[1723589701315,20.25098,147.34,147.3,6.7887]
[1723589702126,20.12549,147.34,147.31,6.7883]
[1723589703447,20.12549,147.34,147.3,6.7887]
[1723589704317,26.91259,147.34,147.29,21.8585]
[1723589704910,6.7874,147.33,147.29,21.8585]
[1723589705115,6.7874,147.33,147.28,6.7896]
[1723589706961,19.1874,147.33,147.28,6.7896]
[1723589707555,19.1874,147.33,147.29,6.7893]
[1723589707867,12.4,147.33,147.29,6.7893]
[1723589708871,11.9,147.33,147.29,6.7893]
[1723589709583,20.25098,147.34,147.25,16.0007]
[1723589709862,20.12549,147.35,147.27,12.4]
[1723589710033,0.12549,147.35,147.32,6.7879]
[1723589710230,0.12549,147.35,147.3,6.7884]
[1723589710432,6.91219,147.35,147.31,6.7883]
[1723589710736,20.0,147.34,147.31,6.7883]
[1723589711051,20.0,147.34,147.27,12.4]
[1723589711672,20.0,147.34,147.31,6.7883]
[1723589712648,0.12549,147.35,147.31,6.7883]
[1723589712649,20.12549,147.35,147.31,6.7883]
[1723589712846,20.12549,147.35,147.3,6.7887]
[1723589712847,26.91219,147.35,147.3,6.7887]
[1723589713158,20.12549,147.35,147.31,6.7883]
[1723589713566,20.25098,147.36,147.31,6.7883]
[1723589713777,0.25098,147.35,147.31,6.7883]
[1723589714075,7.03768,147.35,147.27,12.4]
[1723589714238,20.0,147.34,147.3,6.7887]
[1723589714740,26.787,147.34,147.3,6.7887]
[1723589715367,12.52549,147.33,147.27,6.7898]
[1723589715566,6.91339,147.32,147.27,6.7898]
[1723589716083,6.91339,147.32,147.28,6.7897]
[1723589716749,0.12549,147.32,147.28,6.7897]
[1723589719085,0.12549,147.32,147.29,6.7892]
[1723589720783,20.0,147.34,147.25,28.4007]
[1723589721291,20.0,147.34,147.3,6.7887]
[1723589721978,0.12549,147.33,147.3,6.7887]
[1723589723893,20.0,147.34,147.31,6.7882]
[1723589725694,20.0,147.35,147.31,6.7882]
[1723589728804,26.7866,147.35,147.31,6.7882]
[1723589728992,39.1866,147.35,147.29,6.7889]
[1723589729608,39.1866,147.35,147.3,6.7887]
[1723589732899,23.67141188,147.38,147.31,1.357655]
[1723589733191,20.0,147.37,147.33,6.7871]
[1723589734821,26.7856,147.37,147.33,6.7871]
[1723589735821,26.7856,147.37,147.25,7.80798765]
[1723589735822,6.7899,147.28,147.23,16.0078]
[1723589736120,0.12549,147.28,147.23,16.0078]
[1723589736321,6.7911,147.25,147.2,14.1777323]
[1723589736627,6.7911,147.25,147.21,6.793]
[1723589736834,6.7925,147.23,147.2,0.8361323]
[1723589737001,45.25098,147.24,147.2,0.8361323]
[1723589737002,7.04268,147.24,147.2,0.8361323]
[1723589737333,12.65098,147.23,147.2,0.8361323]
[1723589737620,12.65098,147.22,147.2,0.8361323]
[1723589737794,12.52549,147.22,147.2,0.8361323]
[1723589737992,0.12549,147.22,147.2,0.8361323]
[1723589738424,0.25098,147.22,147.2,0.8361323]
[1723589738989,7.16947,147.21,147.2,0.8361323]
[1723589739195,72.29496,147.21,147.2,0.8361323]
[1723589740718,20.0,147.21,147.2,0.8361323]
[1723589740924,0.12549,147.24,147.2,0.8361323]
[1723589741223,52.16807,147.24,147.2,0.8361323]
[1723589741525,20.0,147.23,147.2,0.8361323]
[1723589742498,0.12549,147.22,147.2,0.8361323]
[1723589742708,20.0,147.23,147.2,7.6295323]
[1723589742909,20.0,147.23,147.2,0.8361323]
[1723589743510,20.0,147.23,147.2,7.6295323]
[1723589744223,20.0,147.23,147.2,0.8361323]
[1723589744595,26.91709,147.24,147.2,0.8361323]
[1723589744811,0.12549,147.23,147.2,0.8361323]
[1723589746933,6.0552,147.27,147.2,2.19483937]
[1723589747149,20.0,147.26,147.2,0.8361323]
[1723589747824,20.0,147.26,147.22,6.7925]
[1723589748330,0.12549,147.25,147.22,6.7925]
[1723589748706,0.12549,147.25,147.21,6.7929]
[1723589750031,20.0,147.26,147.21,15.5515]
[1723589750330,0.25098,147.27,147.23,6.7916]
[1723589750533,0.12549,147.27,147.23,6.7916]
[1723589750698,20.12549,147.27,147.23,6.7916]
[1723589750910,6.7894,147.29,147.24,6.7913]
[1723589751115,45.25098,147.28,147.24,6.7913]
[1723589751816,6.91569,147.27,147.22,6.7921]
[1723589752043,45.37647,147.26,147.2,16.3876323]
[1723589752411,6.7911,147.25,147.2,23.1806323]
[1723589752616,45.37647,147.26,147.2,16.3876323]
[1723589752837,52.16717,147.26,147.21,6.7926]
[1723589753341,52.16717,147.26,147.22,6.7925]
[1723589753640,52.16717,147.26,147.21,6.793]
[1723589753814,52.16717,147.26,147.2,23.1809323]
[1723589753815,6.91659,147.25,147.2,23.1809323]
[1723589754019,6.91709,147.24,147.2,23.1809323]
[1723589754323,6.91669,147.25,147.2,23.1809323]
[1723589754512,0.12549,147.24,147.2,23.1809323]
[1723589756256,0.12549,147.24,147.21,6.7927]
[1723589756418,20.12549,147.25,147.22,6.7923]
[1723589757448,20.0,147.25,147.23,6.7918]
[1723589757622,20.12549,147.27,147.23,6.7918]
[1723589757823,0.12549,147.26,147.23,6.7918]
[1723589759347,0.12549,147.26,147.22,6.7925]
[1723589761069,6.91639,147.26,147.21,6.793]
[1723589761349,20.0,147.25,147.21,6.793]
[1723589761553,26.7911,147.25,147.21,6.793]
[1723589761858,0.25098,147.28,147.2,16.3876323]
[1723589762057,6.788,147.32,147.27,6.7898]
[1723589762543,6.7875,147.33,147.28,6.7896]
[1723589762751,6.7875,147.33,147.29,6.7893]
[1723589762931,6.7875,147.33,147.28,6.7896]
[1723589763735,31.05,147.34,147.26,15.9734]
[1723589764062,6.91379,147.32,147.27,6.79]
[1723589764235,20.25098,147.31,147.27,6.79]
[1723589764669,20.12549,147.31,147.27,6.79]
[1723589764846,20.0,147.31,147.28,6.7896]
[1723589765351,20.0,147.32,147.29,6.7892]
[1723589765560,20.0,147.33,147.29,6.7892]
[1723589766077,0.12549,147.32,147.28,6.7897]
[1723589766253,6.91359,147.32,147.27,6.7902]
[1723589766657,0.25098,147.31,147.27,6.7902]
[1723589766855,0.12549,147.3,147.26,15.9734]
[1723589767172,6.7894,147.29,147.26,15.9734]
[1723589767376,6.7894,147.29,147.25,6.7911]
[1723589767569,6.91429,147.3,147.25,6.7911]
[1723589767768,0.12549,147.29,147.25,6.7911]
[1723589768456,65.12549,147.31,147.23,16.2114]
[1723589768658,0.12549,147.3,147.24,1.35801112]
[1723589768855,65.12549,147.31,147.24,1.35801112]
[1723589769077,20.0,147.31,147.29,6.7892]
[1723589769260,20.0,147.33,147.29,6.7892]
[1723589770582,20.0,147.33,147.24,31.05]
[1723589770777,31.05,147.36,147.25,21.35783475]
[1723589770973,6.7866,147.35,147.25,21.35783475]
[1723589771871,6.7866,147.35,147.3,6.7888]
[1723589772077,20.37647,147.34,147.25,20.0]
[1723589772261,65.0,147.33,147.24,20.0]
[1723589772459,45.0,147.33,147.24,20.0]
[1723589772677,45.37647,147.34,147.24,20.0]
[1723589772897,20.0,147.33,147.24,20.0]
[1723589773060,6.7884,147.31,147.26,6.7903]
[1723589773268,0.25098,147.32,147.27,6.7901]
[1723589773269,6.91339,147.32,147.27,6.7901]
[1723589773476,0.12549,147.31,147.27,6.7901]
[1723589775467,0.12549,147.31,147.28,6.7897]
[1723589775667,26.7875,147.33,147.29,6.7893]
[1723589775668,20.0,147.33,147.29,6.7893]
[1723589776091,20.0,147.33,147.3,6.7888]
[1723589776295,20.0,147.33,147.29,6.7892]
[1723589776587,0.12549,147.32,147.27,6.7898]
[1723589777202,0.12549,147.32,147.28,6.7896]
[1723589777793,20.0,147.33,147.24,20.0]
[1723589777991,20.37647,147.34,147.24,51.05]
[1723589778190,0.12549,147.33,147.24,51.05]
[1723589778783,0.12549,147.33,147.3,6.7887]
[1723589779492,20.0,147.34,147.3,6.7887]
[1723589779875,20.0,147.34,147.31,6.7883]
[1723589780196,20.0,147.35,147.24,51.05]
[1723589780393,20.0,147.35,147.25,45.25098]
[1723589780582,20.0,147.35,147.26,20.0]
[1723589781911,20.0,147.35,147.31,6.7883]
[1723589782710,26.7865,147.35,147.3,6.7888]
[1723589783007,20.0,147.35,147.31,6.7883]
[1723589783412,0.12549,147.34,147.26,20.0]
[1723589783618,52.28906,147.34,147.29,6.7889]
[1723589783902,0.12549,147.34,147.25,32.40775939]
[1723589784103,26.7866,147.35,147.26,20.0]
[1723589785008,26.7866,147.35,147.31,6.7884]
[1723589788006,20.0,147.35,147.31,6.7884]
[1723589789519,6.7852,147.38,147.32,1.35745185]
[1723589789682,13.29699,147.39,147.34,6.7869]
[1723589789879,0.12549,147.38,147.34,6.7869]
[1723589790809,13.1715,147.39,147.34,6.7869]
[1723589791111,26.91069,147.38,147.34,6.7869]
[1723589792919,26.91069,147.38,147.29,51.05]
[1723589792920,26.91069,147.38,147.33,6.7873]
[1723589793813,16.44799,147.4,147.34,1.35734933]
[1723589794015,20.12549,147.39,147.35,6.7865]
[1723589794308,26.91019,147.39,147.34,6.7869]
[1723589795909,26.91019,147.39,147.29,51.05]
[1723589795910,6.7852,147.38,147.33,6.7873]
[1723589796428,6.7858,147.37,147.32,6.7879]
[1723589799019,6.7858,147.37,147.33,6.7874]
[1723589799397,19.31069,147.38,147.33,6.7874]
[1723589800033,6.91069,147.38,147.33,6.7874]
[1723589800329,51.91109,147.37,147.33,6.7874]
[1723589800507,45.25098,147.37,147.33,6.7874]
[1723589800712,0.25098,147.37,147.33,6.7874]
[1723589801227,52.03618,147.38,147.34,6.7868]
[1723589801228,45.12549,147.38,147.34,6.7868]
[1723589804605,45.12549,147.38,147.29,20.0]
[1723589804606,20.0,147.39,147.29,20.0]
[1723589804826,20.0,147.39,147.3,77.84911992]
[1723589805007,20.0,147.42,147.31,20.0]
[1723589805214,20.0,147.42,147.32,1.35714242]
[1723589805441,6.7838,147.41,147.37,6.7855]
[1723589805728,20.0,147.4,147.36,6.786]
[1723589805934,26.7844,147.4,147.31,20.0]
[1723589806442,26.7844,147.4,147.36,6.7859]
[1723589806627,20.0,147.4,147.36,6.7859]
[1723589807028,26.7844,147.4,147.35,6.7864]
[1723589808043,31.11549,147.39,147.31,20.0]
[1723589808220,52.03618,147.38,147.33,6.7874]
[1723589809127,45.25098,147.38,147.34,6.7869]
[1723589809335,45.25098,147.38,147.35,6.7864]
[1723589809336,0.25098,147.38,147.35,6.7864]
[1723589809518,0.12549,147.38,147.35,6.7864]
[1723589809719,45.37647,147.39,147.35,6.7864]
[1723589810044,52.16117,147.39,147.35,6.7864]
[1723589811254,45.37647,147.39,147.35,6.7864]
[1723589811451,52.16127,147.39,147.35,6.7864]
[1723589815449,45.37647,147.39,147.35,6.7864]
[1723589817147,0.12549,147.38,147.29,20.0]
[1723589817352,0.12549,147.37,147.32,6.7879]
[1723589817561,0.12549,147.37,147.29,20.0]
[1723589817562,45.37647,147.37,147.33,6.7874]
[1723589818737,20.0,147.38,147.29,20.0]
[1723589819056,20.0,147.38,147.35,6.7862]
[1723589819352,7.16217,147.37,147.29,20.0]
[1723589819558,7.16217,147.37,147.33,6.7874]
[1723589820327,71.7862,147.36,147.28,16.2166]
[1723589820533,6.7866,147.35,147.28,16.2166]
[1723589820724,82.90159,147.36,147.28,16.2166]
[1723589820930,20.12549,147.35,147.28,16.2166]
[1723589821239,0.12549,147.34,147.28,16.2166]
[1723589821434,20.12549,147.35,147.32,6.7878]
[1723589824144,20.0,147.35,147.32,6.7878]
[1723589824454,0.12549,147.37,147.28,16.2166]
[1723589824642,20.25098,147.37,147.29,13.75743506]
[1723589824954,20.25098,147.37,147.29,12.4]
[1723589825150,27.03658,147.37,147.33,6.7874]
[1723589825538,20.25098,147.37,147.33,6.7874]
[1723589827055,27.03668,147.37,147.32,6.7878]
[1723589840868,6.7861,147.36,147.32,6.7878]
[1723589842259,6.7867,147.35,147.28,16.2166]
[1723589842774,19.1861,147.36,147.31,6.7883]
[1723589844948,19.1861,147.36,147.32,6.7879]
[1723589845156,27.03668,147.37,147.32,6.7879]
[1723589845582,6.91159,147.36,147.32,6.7879]
[1723589846275,27.03668,147.37,147.32,6.7879]
[1723589848365,6.7862,147.36,147.32,6.7879]
[1723589850055,20.25098,147.37,147.32,6.7879]
[1723589850056,27.03658,147.37,147.32,6.7879]
[1723589851489,6.7861,147.36,147.32,6.7879]
[1723589852467,6.7866,147.35,147.28,16.2166]
[1723589852656,6.7866,147.35,147.3,6.7885]
[1723589853485,6.7866,147.35,147.31,6.7883]
[1723589855285,0.12549,147.35,147.31,6.7883]
[1723589855481,0.37647,147.35,147.32,6.7878]
[1723589856585,20.37647,147.35,147.32,6.7878]
[1723589858596,20.37647,147.35,147.31,6.7883]
[1723589858901,27.16307,147.35,147.31,6.7883]
[1723589865511,20.37647,147.35,147.31,6.7883]
[1723589866207,27.16307,147.35,147.31,6.7883]
[1723589866412,20.37647,147.35,147.3,6.7888]
[1723589867601,27.16317,147.35,147.3,6.7888]
[1723589868396,45.0,147.34,147.3,6.7888]
[1723589869116,51.787,147.34,147.29,6.7892]
[1723589869320,0.37647,147.33,147.29,6.7892]
[1723589872715,27.16407,147.33,147.28,6.7896]
[1723589873409,27.16407,147.33,147.29,6.7892]
[1723589873410,20.37647,147.33,147.29,6.7892]
[1723589875623,20.0,147.33,147.26,12.4]
[1723589875809,39.1856,147.37,147.32,6.7879]
[1723589876217,7.0694148,147.39,147.37,6.7856]
[1723589876506,6.2589,147.42,147.38,6.7851]
[1723589877305,6.2589,147.42,147.39,6.7845]
[1723589877513,13.8487145,147.45,147.4,6.7838]
[1723589877703,6.782,147.45,147.4,6.7838]
[1723589878215,6.782,147.45,147.39,6.7846]
[1723589878599,6.7824,147.44,147.39,6.7846]
[1723589879420,20.0,147.43,147.39,6.7846]
[1723589879921,12.4,147.42,147.35,16.5165]
[1723589880427,6.91009,147.4,147.35,23.303]
[1723589880734,12.52549,147.4,147.31,16.5165]
[1723589881036,12.52549,147.4,147.34,6.7866]
[1723589881037,52.03578,147.39,147.34,6.7866]
[1723589881419,45.25098,147.39,147.35,6.7864]
[1723589883221,52.03578,147.39,147.34,6.7869]
[1723589884418,0.12549,147.4,147.37,6.7855]
[1723589884633,20.12549,147.41,147.37,6.7855]
[1723589885828,20.12549,147.41,147.38,6.785]
[1723589886411,20.12549,147.41,147.37,6.7855]
[1723589889351,20.0,147.41,147.38,6.7851]
[1723589889643,20.12549,147.43,147.38,6.7851]
[1723589889817,0.12549,147.42,147.38,6.7851]
[1723589891113,20.12549,147.43,147.39,6.7846]
[1723589892331,6.7835,147.42,147.37,6.7855]
[1723589892538,6.7843,147.4,147.32,12.4]
[1723589892742,6.7843,147.4,147.33,20.0]
[1723589892926,6.7843,147.4,147.36,6.786]
[1723589894015,6.90929,147.41,147.36,6.786]
[1723589895417,6.90929,147.41,147.37,6.7856]
[1723589895758,0.12549,147.41,147.37,6.7856]
[1723589895920,20.0,147.43,147.34,13.75698943]
[1723589896118,20.0,147.43,147.39,6.7843]
[1723589896634,26.7829,147.43,147.39,6.7843]
[1723589897518,6.7838,147.41,147.33,32.4]
[1723589897946,19.30879,147.42,147.33,32.4]
[1723589898128,20.12549,147.41,147.33,32.4]
[1723589898845,20.12549,147.41,147.37,6.7855]
[1723589899545,6.7859,147.37,147.32,6.7878]
[1723589899726,12.4,147.38,147.31,16.5165]
[1723589900049,19.09357,147.4,147.35,6.7861]
[1723589900351,20.12549,147.39,147.36,6.7859]
[1723589900549,20.12549,147.39,147.35,6.7864]
[1723589900730,20.12549,147.39,147.32,13.75730849]
[1723589900934,20.12549,147.39,147.32,12.4]
[1723589901160,20.12549,147.39,147.32,13.75718362]
[1723589901365,20.12549,147.39,147.33,1.35718134]
[1723589902069,20.12549,147.39,147.36,6.7859]
[1723589902948,20.0,147.39,147.35,6.7865]
[1723589903341,20.0,147.39,147.36,6.786]
[1723589903678,20.0,147.39,147.35,6.7864]
[1723589904166,26.7847,147.39,147.35,6.7864]
[1723589906050,20.0,147.39,147.35,6.7864]
[1723589906251,20.0,147.39,147.36,6.786]
[1723589907769,20.0,147.39,147.35,6.7864]
[1723589910075,20.0,147.39,147.36,6.786]
[1723589913476,20.0,147.39,147.35,6.7864]
[1723589913971,6.7833,147.42,147.37,6.7856]
[1723589914171,20.0,147.41,147.38,1.35689985]
[1723589914478,20.0,147.41,147.37,8.14249985]
[1723589915357,20.0,147.41,147.37,6.7856]
[1723589915968,20.0,147.41,147.32,12.4]
[1723589916173,20.0,147.41,147.33,20.0]
[1723589916780,6.7847,147.39,147.33,20.0]
[1723589917087,26.7842,147.41,147.35,6.7862]
[1723589919484,26.7842,147.41,147.36,6.7858]
[1723589921496,12.4,147.4,147.35,6.7864]
[1723589921682,12.4,147.4,147.31,16.64199]
[1723589921683,12.4,147.4,147.36,6.786]
[1723589921987,26.7838,147.41,147.36,6.786]
[1723589922488,20.0,147.41,147.38,6.785]
[1723589922785,26.7838,147.41,147.37,6.7855]
[1723589923187,26.7838,147.41,147.31,16.5165]
[1723589923188,19.30969,147.4,147.31,16.5165]
[1723589923365,6.91049,147.39,147.34,6.7869]
[1723589924162,6.7852,147.38,147.34,6.7869]
[1723589924365,19.1852,147.38,147.32,6.7874]
[1723589924866,19.1852,147.38,147.33,6.7873]
[1723589925478,19.1852,147.38,147.34,6.7869]
[1723589926060,12.4,147.38,147.34,6.7869]
[1723589926480,12.4,147.38,147.35,6.7864]
[1723589929292,12.4,147.38,147.34,6.7868]
[1723589929664,19.1852,147.38,147.34,6.7868]
[1723589930499,0.12549,147.39,147.26,16.1335]
[1723589930500,12.4,147.35,147.26,16.1335]
[1723589930793,0.12549,147.34,147.3,6.7886]
[1723589931189,12.4,147.35,147.27,13.75771445]
[1723589931365,0.12549,147.36,147.27,13.75771445]
[1723589931568,65.25098,147.36,147.27,13.75771445]
[1723589931786,65.25098,147.36,147.27,12.4]
[1723589932590,72.03708,147.36,147.32,6.7875]
[1723589932796,19.1866,147.35,147.3,6.7884]
[1723589932973,12.4,147.35,147.32,6.7879]
[1723589933174,12.4,147.35,147.31,6.7883]
[1723589942709,12.4,147.35,147.26,16.1335]
[1723589942999,0.12549,147.34,147.29,6.7889]
[1723589943777,6.91279,147.34,147.3,6.7888]
[1723589943973,0.12549,147.34,147.3,6.7888]
[1723589945790,0.12549,147.34,147.31,6.7882]
[1723589945992,12.4,147.35,147.31,6.7882]
[1723589947886,20.0,147.36,147.33,6.7874]
[1723589948405,39.1862,147.36,147.32,6.7878]
[1723589948582,32.4,147.36,147.32,6.7878]
[1723589949487,39.1862,147.36,147.32,6.7878]
[1723589950111,32.4,147.36,147.32,6.7878]
[1723589950296,45.25098,147.35,147.26,28.5335]
[1723589950503,52.03758,147.35,147.27,20.0]
[1723589950803,0.12549,147.35,147.31,6.7883]
[1723589950994,0.25098,147.35,147.32,6.7878]
[1723589951604,0.12549,147.35,147.32,6.7878]
[1723589951813,32.4,147.36,147.32,6.7878]
[1723589952311,20.0,147.36,147.28,12.4]
[1723589952503,20.0,147.36,147.27,32.4]
[1723589952819,0.12549,147.35,147.27,32.4]
[1723589953302,6.7873,147.34,147.29,6.7892]
[1723589953482,57.65098,147.35,147.28,6.7897]
[1723589953681,12.4,147.33,147.28,6.7897]
[1723589953884,19.1885,147.31,147.26,6.7903]
[1723589955492,0.12549,147.28,147.22,15.0746]
[1723589955793,0.12549,147.28,147.23,1.3583531]
[1723589956108,12.4,147.29,147.23,1.3583531]
[1723589956800,12.4,147.29,147.26,6.7906]
[1723589959192,16.27168,147.3,147.27,6.7901]
[1723589959392,16.27168,147.3,147.21,20.0]
[1723589959393,20.0,147.29,147.26,6.7906]
[1723589959799,20.0,147.29,147.25,6.791]
[1723589960108,26.7893,147.29,147.25,6.791]
[1723589960315,39.1893,147.29,147.24,6.7915]
[1723589960607,39.1893,147.29,147.21,20.0]
[1723589960608,32.4,147.29,147.25,6.791]
[1723589960824,20.0,147.29,147.26,6.7906]
[1723589962118,20.0,147.29,147.25,6.791]
[1723589966290,6.3031,147.32,147.22,12.4]
[1723589966490,20.0,147.31,147.28,6.7895]
[1723589966806,20.0,147.31,147.27,6.7901]
[1723589969023,26.7884,147.31,147.27,6.7901]
[1723589969618,20.0,147.31,147.27,6.7901]
[1723589976617,26.7884,147.31,147.27,6.7901]
[1723589978729,20.0,147.31,147.27,6.7901]
[1723589985948,26.7884,147.31,147.26,6.7906]
[1723589986169,26.7884,147.31,147.23,15.2851]
[1723589986170,12.4,147.28,147.21,20.0]
[1723589986322,6.7903,147.27,147.22,6.7922]
[1723589986655,19.1898,147.28,147.24,6.7915]
[1723589988635,12.4,147.28,147.24,6.7915]
[1723589989042,23.1434,147.29,147.24,6.7915]
[1723589989243,16.354,147.29,147.25,6.7911]
[1723589991350,0.12549,147.28,147.24,6.7915]
[1723589991543,45.37647,147.28,147.24,6.7915]
[1723589994024,45.37647,147.28,147.25,6.791]
[1723589996646,16.354,147.29,147.26,6.7906]
[1723589996855,13.36407602,147.32,147.25,12.4]
[1723589997033,69.391,147.43,147.27,12.4]
[1723589997034,13.1498,147.36,147.27,12.4]
[1723589997234,25.5498,147.36,147.27,12.4]
[1723589997731,6.7865,147.35,147.31,6.7882]
[1723589997932,6.3637,147.36,147.32,6.7878]
[1723589998651,6.3637,147.36,147.25,15.0932]
[1723589998652,13.1498,147.36,147.27,12.4]
[1723589998836,25.5498,147.36,147.31,6.7883]
[1723589999222,20.0,147.35,147.31,6.7883]
[1723589999835,26.7866,147.35,147.3,6.7887]
[1723590000850,20.0,147.35,147.31,6.7883]